[Event "Austrian Youth-ch U16 Boys 2024"]
[Site "Leibnitz"]
[Date "2024.03.26"]
[Round "4.2"]
[White "Geroe, Leonhard"]
[Black "Wu, Chenshan"]
[Result "1-0"]
[ECO "C14"]
[WhiteElo "2094"]
[BlackElo "1815"]
[Annotator "RC"]
[PlyCount "49"]
[EventDate "2024.03.23"]
[EventType "swiss"]
[EventCountry "AUT"]
[SourceTitle "playchess.com"]
[Source "ChessBase"]
[SourceQuality "1"]
[TimeControl "5400+30"]

1. e4 {[%emt 0:00:02]} e6 {[%emt 0:00:03]} 2. d4 {[%emt 0:00:14]} d5 {[%emt 0:00:05]} 3. Nc3 {[%emt 0:00:04]} Nf6 {[%emt 0:00:06]} 4. Bg5 {[%emt 0:00:28]} Be7 {[%emt 0:00:21]} 5. e5 {[%emt 0:01:29]} Nfd7 {[%emt 0:00:08]} 6. Bxe7 {[%emt 0:00:44]} Qxe7 {[%emt 0:00:04]} 7. f4 {[%emt 0:00:04]} a6 {[%emt 0:00:45]} 8. Qg4 {[%emt 0:00:41]} O-O {[%emt 0:01:59]} 9. Nf3 {[%emt 0:09:51]} c5 {[%emt 0:03:10]} 10. Bd3 {[%emt 0:00:07]} h6 {[%emt 0:05:22]} 11. f5 {[%emt 0:13:05]} Kh8 {[%emt 0:13:21]} 12. f6 {[%emt 0:19:16]} gxf6 {[%emt 0:01:29]} 13. Qh4 {[%emt 0:00:35]} Kg7 {[%emt 0:01:55]} 14. Nxd5 {[%emt 0:00:12]} Qd8 {[%emt 0:04:57]} 15. exf6+ {[%emt 0:12:24]} Nxf6 {[%emt 0:00:17]} 16. Nxf6 {[%emt 0:00:15]} Qxf6 {[%emt 0:00:11]} 17. Qe4 {[%emt 0:02:00]} Rd8 {[%emt 0:05:46]} 18. O-O {[%emt 0:01:38]} Qf5 {[%emt 0:11:34]} 19. Qh4 {[%emt 0:01:18]} Qd5 {[%emt 0:01:02]} 20. Ne5 {[%emt 0:01:19]} Qxd4+ {[%emt 0:00:57]} 21. Qxd4 {[%emt 0:00:13]} cxd4 {[%emt 0:01:43]} 22. Rxf7+ {[%emt 0:00:07]} Kh8 {[%emt 0:00:11]} 23. Bh7 {[%emt 0:00:13]} Rg8 {[%emt 0:01:39]} 24. Bxg8 {[%emt 0:00:14]} Kxg8 {[%emt 0:00:06]} 25. Raf1 {[%emt 0:00:05]} 1-0

[Event "Austrian Youth-ch U16 Boys 2024"]
[Site "Leibnitz"]
[Date "2024.03.26"]
[Round "4.4"]
[White "Gschwandtl, Alexander"]
[Black "Stickler, Florentin"]
[Result "0-1"]
[ECO "C56"]
[WhiteElo "1997"]
[BlackElo "1885"]
[Annotator "RC"]
[PlyCount "64"]
[EventDate "2024.03.23"]
[EventType "swiss"]
[EventCountry "AUT"]
[SourceTitle "playchess.com"]
[Source "ChessBase"]
[SourceQuality "1"]
[TimeControl "5400+30"]

1. e4 {[%emt 0:00:02]} e5 {[%emt 0:00:06]} 2. Nf3 {[%emt 0:00:04]} Nc6 {[%emt 0:00:03]} 3. d4 {[%emt 0:00:04]} exd4 {[%emt 0:00:04]} 4. Bc4 {[%emt 0:00:04]} Nf6 {[%emt 0:00:03]} 5. e5 {[%emt 0:00:05]} d5 {[%emt 0:00:04]} 6. Bb5 {[%emt 0:00:05]} Nd7 {[%emt 0:00:03]} 7. O-O {[%emt 0:00:19]} Be7 {[%emt 0:00:12]} 8. Bxc6 {[%emt 0:00:28]} bxc6 {[%emt 0:00:05]} 9. Nxd4 {[%emt 0:00:26]} Nb8 {[%emt 0:00:06]} 10. f4 {[%emt 0:26:03]} c5 {[%emt 0:03:07]} 11. Nf3 {[%emt 0:01:26]} O-O {[%emt 0:01:07]} 12. Nc3 {[%emt 0:07:00]} d4 {[%emt 0:03:11]} 13. Ne4 {[%emt 0:00:59]} Bb7 {[%emt 0:00:28]} 14. Ned2 {[%emt 0:10:43]} f6 {[%emt 0:04:02]} 15. Nc4 {[%emt 0:05:55]} Qd5 {[%emt 0:03:17]} 16. b3 {[%emt 0:10:52]} Ba6 {[%emt 0:01:21]} 17. Qd3 {[%emt 0:05:42]} Nd7 {[%emt 0:01:03]} 18. Re1 {[%emt 0:00:35]} Nb6 {[%emt 0:01:17]} 19. Nxb6 {[%emt 0:08:50]} axb6 {[%emt 0:01:17]} 20. c4 {[%emt 0:01:58]} Qc6 {[%emt 0:02:04]} 21. a4 {[%emt 0:00:36]} Bb7 {[%emt 0:01:09]} 22. Ra2 {[%emt 0:02:53]} Rae8 {[%emt 0:02:10]} 23. Rae2 {[%emt 0:04:42]} f5 {[%emt 0:01:08]} 24. Rf2 {[%emt 0:03:41]} Qh6 {[%emt 0:01:10]} 25. Nd2 {[%emt 0:01:28]} Bd8 {[%emt 0:01:28]} 26. Nf1 {[%emt 0:07:24]} Bh4 {[%emt 0:01:37]} 27. Ng3 {[%emt 0:00:52]} Be4 {[%emt 0:00:36]} 28. Qd2 {[%emt 0:00:35]} Bxg3 {[%emt 0:00:09]} 29. hxg3 {[%emt 0:00:08]} Qg6 {[%emt 0:00:17]} 30. Kf1 {[%emt 0:00:32]} Qxg3 {[%emt 0:00:16]} 31. b4 {[%emt 0:00:41]} Qh2 {[%emt 0:02:35]} 32. bxc5 {[%emt 0:00:31]} d3 {[%emt 0:00:00]} 0-1

[Event "Austrian Youth-ch U16 Boys 2024"]
[Site "Leibnitz"]
[Date "2024.03.26"]
[Round "4.5"]
[White "Standhartinger, Joachim"]
[Black "Haselsberger, Armin"]
[Result "1-0"]
[ECO "B10"]
[WhiteElo "1930"]
[BlackElo "1869"]
[Annotator "RC"]
[PlyCount "41"]
[EventDate "2024.03.23"]
[EventType "swiss"]
[EventCountry "AUT"]
[SourceTitle "playchess.com"]
[Source "ChessBase"]
[SourceQuality "1"]
[TimeControl "5400+30"]

1. e4 {[%emt 0:00:24]} c6 {[%emt 0:00:37]} 2. c4 {[%emt 0:00:09]} d5 {[%emt 0:00:30]} 3. exd5 {[%emt 0:00:21]} cxd5 {[%emt 0:00:38]} 4. cxd5 {[%emt 0:00:09]} Nf6 {[%emt 0:00:31]} 5. Qa4+ {[%emt 0:00:31]} Nbd7 {[%emt 0:02:09]} 6. Nc3 {[%emt 0:00:26]} g6 {[%emt 0:00:57]} 7. Nf3 {[%emt 0:00:55]} Bg7 {[%emt 0:02:02]} 8. Bc4 {[%emt 0:01:00]} O-O {[%emt 0:02:49]} 9. d3 {[%emt 0:00:40]} b6 {[%emt 0:02:11]} 10. Nd4 {[%emt 0:15:52]} Bb7 {[%emt 0:25:49]} 11. Nc6 {[%emt 0:06:19]} Bxc6 {[%emt 0:00:47]} 12. dxc6 {[%emt 0:00:18]} Ne5 {[%emt 0:05:07]} 13. O-O {[%emt 0:09:49]} Qc8 {[%emt 0:19:13]} 14. Ba6 {[%emt 0:08:52]} Qc7 {[%emt 0:06:03]} 15. Bb7 {[%emt 0:08:37]} Nxd3 {[%emt 0:04:42]} 16. Nb5 {[%emt 0:10:23]} Qe5 {[%emt 0:00:28]} 17. Bxa8 {[%emt 0:01:16]} Rxa8 {[%emt 0:00:03]} 18. Qc4 {[%emt 0:03:22]} Nc5 {[%emt 0:08:51]} 19. Bf4 {[%emt 0:08:19]} Qf5 {[%emt 0:02:54]} 20. c7 {[%emt 0:03:49]} e5 {[%emt 0:00:49]} 21. Rad1 {[%emt 0:06:15]} 1-0

[Event "Austrian Youth-ch U16 Boys 2024"]
[Site "Leibnitz"]
[Date "2024.03.26"]
[Round "4.6"]
[White "Groessing, Daniel-Yosuke"]
[Black "Raber, Eduard"]
[Result "0-1"]
[ECO "E14"]
[WhiteElo "1897"]
[BlackElo "1768"]
[Annotator "NA RC"]
[PlyCount "100"]
[EventDate "2024.03.23"]
[EventType "swiss"]
[EventCountry "AUT"]
[SourceTitle "playchess.com"]
[Source "ChessBase"]
[SourceQuality "1"]
[TimeControl "5400+30"]

1. d4 {[%emt 0:00:03]} b6 {[%emt 0:00:09]} 2. c4 {[%emt 0:00:46]} e6 {[%emt 0:00:18]} 3. Nc3 {[%emt 0:00:50]} Nf6 {[%emt 0:00:22]} 4. Nf3 {[%emt 0:02:24]} Bb7 {[%emt 0:00:20]} 5. e3 {[%emt 0:01:27]} d5 {[%emt 0:00:49]} 6. Bd3 {[%emt 0:00:41]} dxc4 {[%emt 0:00:21] E14: Queen's Indian: Classical Variation (4 e3).} 7. Bxc4 {[%emt 0:00:20]} Nbd7 {[%emt 0:00:11]} 8. O-O {[%emt 0:01:39]} Bd6 {[%emt 0:00:40]} 9. Re1 {[%emt 0:02:29]} O-O {[%emt 0:01:44]} 10. e4 {[%emt 0:03:21]} Bb4 {[%emt 0:00:32]} 11. Bd3 {[%emt 0:01:46]} c5 {[%emt 0:09:02]} 12. Bg5 {[%emt 0:03:54]} h6 {[%emt 0:00:59]} 13. Bh4 {[%emt 0:01:45]} cxd4 {[%emt 0:01:57]} 14. Nxd4 {[%emt 0:05:09] [#]} Nc5 {[%emt 0:01:03]} (14... Ne5 $1 $17 15. Bf1 Ng6) 15. e5 $1 {[%emt 0:05:47]} Bxc3 {[%emt 0:01:03]} 16. bxc3 {[%emt 0:02:01]} Qd5 {[%emt 0:02:00]} 17. f3 {[%emt 0:04:25]} (17. Bf1 $1 $11 Nfe4 18. Qg4) 17... Nxd3 {[%emt 0:01:22]} 18. Qxd3 {[%emt 0:02:05]} Nd7 {[%emt 0:02:35]} 19. Bg3 {[%emt 0:04:06]} Rac8 {[%emt 0:01:22]} 20. a4 {[%emt 0:06:22]} Rc5 {[%emt 0:03:20]} 21. Ra3 {[%emt 0:04:31]} Rfc8 {[%emt 0:02:47]} 22. Qd2 {[%emt 0:03:03]} Rc4 {[%emt 0:04:20]} 23. Re3 {[%emt 0:05:41]} a5 {[%emt 0:03:01]} 24. Qb2 {[%emt 0:02:03]} Bc6 {[%emt 0:01:23]} 25. Nxc6 {[%emt 0:04:29]} Qxc6 {[%emt 0:00:18]} 26. Rd3 {[%emt 0:01:29]} Rxa4 {[%emt 0:00:28]} 27. Rb3 {[%emt 0:01:43]} Nc5 {[%emt 0:04:52]} 28. Rxb6 {[%emt 0:00:59]} Nxd3 {[%emt 0:00:22]} 29. Rxc6 {[%emt 0:00:16]} Rxc6 {[%emt 0:00:23]} 30. Qb8+ {[%emt 0:02:16]} Kh7 {[%emt 0:00:07]} 31. h3 {[%emt 0:02:39]} Rxc3 {[%emt 0:00:22]} 32. Qe8 {[%emt 0:01:31]} Ra1+ {[%emt 0:00:08]} 33. Kh2 {[%emt 0:00:07]} Rcc1 {[%emt 0:00:26]} 34. Bh4 {[%emt 0:01:53]} Nxe5 {[%emt 0:00:28]} 35. f4 {[%emt 0:01:06]} Ng4+ {[%emt 0:13:59]} 36. hxg4 {[%emt 0:00:39]} Rh1+ {[%emt 0:00:05]} 37. Kg3 {[%emt 0:00:05]} Ra3+ {[%emt 0:00:07]} 38. Kf2 {[%emt 0:00:11]} Rxh4 {[%emt 0:00:07]} 39. Qxf7 {[%emt 0:01:35]} Rxg4 {[%emt 0:00:52]} 40. Qxe6 {[%emt 0:07:44]} Rxf4+ {[%emt 0:00:10]} 41. Kg1 {[%emt 0:00:38]} Rf6 {[%emt 0:00:55]} 42. Qe4+ {[%emt 0:00:19]} Rg6 {[%emt 0:00:11]} 43. Qf5 {[%emt 0:01:07]} a4 {[%emt 0:00:19]} 44. Qc2 {[%emt 0:01:15]} Ra1+ {[%emt 0:01:16]} 45. Kh2 {[%emt 0:01:09]} a3 {[%emt 0:01:20]} 46. Qd2 {[%emt 0:01:43]} Rb1 {[%emt 0:00:17]} 47. Qa2 {[%emt 0:01:04]} Rb2 {[%emt 0:00:07]} 48. Qxa3 {[%emt 0:00:16]} Rbxg2+ {[%emt 0:00:04]} 49. Kh1 {[%emt 0:00:49]} Rg1+ $19 {[%emt 0:00:05]} (49... R2g3 {setzt Matt} 50. Qa2 Rh3+ 51. Qh2 Rxh2+ 52. Kxh2 Rg5 53. Kh1 Kg6 54. Kh2 Kf5 55. Kh3 Kf4 56. Kh2 Kf3 57. Kh1 Kf2 58. Kh2 Rh5#) 50. Kh2 {[%emt 0:00:06]} R6g2+ {[%emt 0:00:02]} 0-1

[Event "Austrian Youth-ch U16 Boys 2024"]
[Site "Leibnitz"]
[Date "2024.03.26"]
[Round "4.7"]
[White "Guba, Viktor"]
[Black "Schramml, Fabian"]
[Result "1-0"]
[ECO "B22"]
[WhiteElo "1892"]
[BlackElo "1894"]
[Annotator "NA RC"]
[PlyCount "101"]
[EventDate "2024.03.23"]
[EventType "swiss"]
[EventCountry "AUT"]
[SourceTitle "playchess.com"]
[Source "ChessBase"]
[SourceQuality "1"]
[TimeControl "5400+30"]

1. e4 {[%emt 0:00:04]} c5 {[%emt 0:00:08]} 2. c3 {[%emt 0:00:14]} d5 {[%emt 0:00:06]} 3. exd5 {[%emt 0:00:05]} Qxd5 {[%emt 0:00:05]} 4. d4 {[%emt 0:00:18]} Nf6 {[%emt 0:00:22]} 5. Nf3 {[%emt 0:00:06]} e6 {[%emt 0:00:05]} 6. Na3 {[%emt 0:00:39]} Qd8 {[%emt 0:00:11]} 7. Nc2 {[%emt 0:00:53]} Nc6 {[%emt 0:00:46]} 8. Bd3 {[%emt 0:01:16]} cxd4 {[%emt 0:02:53] B22: Sizilianisch (Alapin 2.c3).} 9. Ncxd4 {[%emt 0:00:06]} Bc5 {[%emt 0:02:13]} 10. Be3 {[%emt 0:04:31]} Bxd4 {[%emt 0:09:43]} 11. Nxd4 {[%emt 0:02:10]} Nd5 {[%emt 0:00:22]} 12. Nxc6 {[%emt 0:00:21]} bxc6 {[%emt 0:01:59]} 13. Bc5 {[%emt 0:01:23]} Qg5 {[%emt 0:01:09]} 14. Qf3 {[%emt 0:04:14]} Qe5+ {[%emt 0:04:23]} 15. Qe4 {[%emt 0:01:54]} Qxe4+ {[%emt 0:00:11]} 16. Bxe4 {[%emt 0:00:05]} Ba6 {[%emt 0:01:19]} 17. O-O-O {[%emt 0:03:53]} f5 {[%emt 0:01:19]} 18. Bd3 {[%emt 0:06:56]} (18. Bc2 $142) 18... Bxd3 {[%emt 0:00:10]} 19. Rxd3 {[%emt 0:00:05]} Kf7 {[%emt 0:01:53]} ({Black should try} 19... e5) 20. Rhd1 {[%emt 0:06:52]} Rhe8 {[%emt 0:04:15]} 21. c4 {[%emt 0:01:46]} Nf6 {[%emt 1:07:28]} 22. Rd6 {[%emt 0:00:56]} Rac8 {[%emt 0:00:00]} 23. Bxa7 {[%emt 0:09:03]} Ra8 {[%emt 0:00:00]} 24. Bc5 {[%emt 0:00:49]} Rxa2 {[%emt 0:00:00]} 25. Rxc6 {[%emt 0:00:06]} Ra1+ {[%emt 0:00:00]} 26. Kc2 {[%emt 0:00:06]} Rxd1 {[%emt 0:00:00]} 27. Kxd1 {[%emt 0:00:10]} Rd8+ {[%emt 0:00:00]} 28. Ke2 {[%emt 0:01:23]} Ne4 {[%emt 0:00:00]} 29. Be3 {[%emt 0:00:08]} Rb8 {[%emt 0:04:00]} 30. Rb6 {[%emt 0:01:18]} Rc8 {[%emt 0:00:00]} 31. f3 {[%emt 0:00:30]} Nf6 {[%emt 0:00:00]} 32. b3 {[%emt 0:01:29]} e5 {[%emt 0:00:00]} 33. Bd2 {[%emt 0:08:30]} e4 {[%emt 0:00:00]} 34. f4 {[%emt 0:00:46]} Rc7 {[%emt 0:00:00]} 35. Ra6 {[%emt 0:00:48]} h6 {[%emt 0:00:00]} 36. Ra1 {[%emt 0:01:06]} Nd7 {[%emt 0:00:00]} 37. Be3 {[%emt 0:01:42]} Ke6 {[%emt 0:00:00]} 38. Rc1 {[%emt 0:01:30]} Nc5 {[%emt 0:00:00]} 39. Bxc5 {[%emt 0:00:58]} Rxc5 {[%emt 0:00:00]} 40. b4 {[%emt 0:00:14]} Rc8 {[%emt 0:00:00]} 41. Ke3 {[%emt 0:00:59]} Rd8 {[%emt 0:00:00]} 42. Rc3 {[%emt 0:02:33]} g5 {[%emt 0:00:00]} 43. c5 {[%emt 0:03:48]} Kd7 {[%emt 0:00:00]} 44. b5 {[%emt 0:00:58]} Kc7 {[%emt 0:00:00]} 45. fxg5 {[%emt 0:02:58]} hxg5 {[%emt 0:00:00]} 46. g3 {[%emt 0:00:05]} Rd1 {[%emt 0:00:00]} 47. Rb3 {[%emt 0:01:08]} Rd5 {[%emt 0:00:00]} 48. b6+ {[%emt 0:01:00]} Kb7 {[%emt 0:00:00]} 49. c6+ {[%emt 0:00:05]} Kb8 {[%emt 0:00:00]} 50. c7+ {[%emt 0:01:29]} Kb7 {[%emt 0:00:00]} 51. Rc3 {[%emt 0:31:34]} 1-0

[Event "Austrian Youth-ch U16 Boys 2024"]
[Site "Leibnitz"]
[Date "2024.03.26"]
[Round "4.8"]
[White "Maier, Tobias"]
[Black "Squasi, Ernesto"]
[Result "1-0"]
[ECO "C02"]
[WhiteElo "1893"]
[BlackElo "1743"]
[Annotator "NA RC"]
[PlyCount "103"]
[EventDate "2024.03.23"]
[EventType "swiss"]
[EventCountry "AUT"]
[SourceTitle "playchess.com"]
[Source "ChessBase"]
[SourceQuality "1"]
[TimeControl "5400+30"]

1. e4 {[%emt 0:00:03]} e6 {[%emt 0:00:01]} 2. d4 {[%emt 0:00:05]} d5 {[%emt 0:00:02]} 3. e5 {[%emt 0:00:07]} c5 {[%emt 0:00:04]} 4. c3 {[%emt 0:00:03]} Nc6 {[%emt 0:00:04]} 5. Nf3 {[%emt 0:00:04]} Qb6 {[%emt 0:00:04]} 6. a3 {[%emt 0:00:03]} cxd4 {[%emt 0:06:55]} 7. cxd4 {[%emt 0:00:36]} Nge7 {[%emt 0:01:57]} 8. b4 {[%emt 0:04:37]} Nf5 {[%emt 0:04:48]} 9. Bb2 {[%emt 0:00:06]} Bd7 {[%emt 0:07:16]} 10. g4 {[%emt 0:04:22]} Nfe7 {[%emt 0:02:36] 10...Nfe7 scores better than 10...Nh6.} 11. Nc3 {[%emt 0:03:58]} Ng6 {[%emt 0:21:38] C02: French: Advance Variation.} 12. Rc1 {[%emt 0:09:14]} Rc8 {[%emt 0:03:33]} 13. Na4 {[%emt 0:02:43]} Qd8 {[%emt 0:00:07]} 14. Nc5 {[%emt 0:01:59]} Bxc5 {[%emt 0:05:30]} 15. Rxc5 {[%emt 0:00:42]} b6 $146 {[%emt 0:05:34]} ({Predecessor:} 15... f6 16. Bd3 Nf4 17. Bb1 Ne7 18. Rxc8 Qxc8 19. Qc1 Qxc1+ 20. Bxc1 Nfg6 21. Bd3 fxe5 22. Nxe5 Nxe5 23. dxe5 {½-½ Kopica,P (1925)-Baranska,M (1795) POL-chT 2nd League 2019 (5.21)}) 16. Rc3 {[%emt 0:02:59]} Nce7 {[%emt 0:01:28]} 17. b5 {[%emt 0:14:39]} O-O {[%emt 0:05:59]} 18. h4 {[%emt 0:05:56]} Re8 {[%emt 0:01:00]} 19. h5 {[%emt 0:01:24]} Nf8 {[%emt 0:00:07]} 20. Bd3 {[%emt 0:07:29]} Rc7 {[%emt 0:07:56]} 21. Qd2 {[%emt 0:11:07]} Nc8 {[%emt 0:07:09]} 22. Qf4 {[%emt 0:01:43]} Re7 {[%emt 0:04:23]} 23. Qg5 {[%emt 0:18:28]} h6 {[%emt 0:04:58]} 24. Qf4 {[%emt 0:00:16]} Rxc3 {[%emt 0:00:40]} 25. Bxc3 {[%emt 0:00:06]} Re8 {[%emt 0:00:30]} 26. g5 {[%emt 0:03:56]} hxg5 {[%emt 0:00:06]} 27. Nxg5 {[%emt 0:00:17]} f6 {[%emt 0:00:15]} 28. Nf3 $18 {[%emt 0:01:08]} f5 {[%emt 0:02:19]} 29. h6 {[%emt 0:02:39]} g6 {[%emt 0:00:39]} 30. h7+ {[%emt 0:00:56]} Nxh7 {[%emt 0:02:15]} 31. Qh6 {[%emt 0:00:09]} Qe7 {[%emt 0:00:22]} 32. Rg1 {[%emt 0:02:02]} Nf8 {[%emt 0:01:00]} 33. Bb4 {[%emt 0:00:17]} Qg7 {[%emt 0:00:05]} 34. Bxf8 {[%emt 0:00:04]} Kxf8 {[%emt 0:00:03]} 35. Qxg6 {[%emt 0:02:16]} Qxg6 {[%emt 0:00:12]} 36. Rxg6 {[%emt 0:00:04]} Kf7 {[%emt 0:02:19]} 37. Rf6+ {[%emt 0:01:18]} Ke7 {[%emt 0:00:36]} 38. Ng5 {[%emt 0:00:45]} Rg8 {[%emt 0:00:16]} 39. f4 {[%emt 0:00:28]} Rh8 {[%emt 0:00:43]} 40. Rf7+ {[%emt 0:00:28]} Ke8 {[%emt 0:00:25]} 41. Rh7 {[%emt 0:00:29]} Rg8 {[%emt 0:01:02]} 42. Kf2 {[%emt 0:00:38]} Ne7 {[%emt 0:00:19]} 43. Be2 {[%emt 0:00:41]} Kd8 {[%emt 0:02:44]} 44. Nf7+ {[%emt 0:00:28]} Kc8 {[%emt 0:00:35]} 45. Nh6 {[%emt 0:00:18]} Rg6 {[%emt 0:00:56]} 46. Bh5 {[%emt 0:00:19]} Rxh6 {[%emt 0:00:07]} 47. Rxh6 {[%emt 0:00:06]} Bxb5 {[%emt 0:00:09]} 48. Rxe6 {[%emt 0:00:31]} Nc6 {[%emt 0:00:21]} 49. Rd6 {[%emt 0:00:32]} Nxd4 {[%emt 0:00:48]} 50. Rxd5 {[%emt 0:00:12]} Ne6 {[%emt 0:00:26]} 51. Rxb5 {[%emt 0:00:10]} Nxf4 {[%emt 0:00:08]} 52. Bf7 {[%emt 0:00:48]} 1-0

[Event "Austrian Youth-ch U16 Boys 2024"]
[Site "Leibnitz"]
[Date "2024.03.26"]
[Round "5.1"]
[White "Leitgeb, Julian"]
[Black "Geroe, Leonhard"]
[Result "1-0"]
[ECO "B36"]
[WhiteElo "2130"]
[BlackElo "2094"]
[Annotator "RC"]
[PlyCount "55"]
[EventDate "2024.03.23"]
[EventType "swiss"]
[EventCountry "AUT"]
[SourceTitle "playchess.com"]
[Source "ChessBase"]
[SourceQuality "1"]
[TimeControl "5400+30"]

1. e4 {[%emt 0:00:03]} c5 {[%emt 0:00:07]} 2. Nf3 {[%emt 0:00:04]} Nc6 {[%emt 0:00:05]} 3. d4 {[%emt 0:00:12]} cxd4 {[%emt 0:00:05]} 4. Nxd4 {[%emt 0:00:03]} g6 {[%emt 0:00:21]} 5. c4 {[%emt 0:00:16]} Nf6 {[%emt 0:00:07]} 6. Nc3 {[%emt 0:00:08]} Nxd4 {[%emt 0:00:06]} 7. Qxd4 {[%emt 0:00:04]} d6 {[%emt 0:00:04]} 8. Be2 {[%emt 0:02:08]} Bg7 {[%emt 0:01:03]} 9. Be3 {[%emt 0:00:18]} O-O {[%emt 0:00:07]} 10. Qd3 {[%emt 0:00:08]} a5 {[%emt 0:16:42]} 11. Bd4 {[%emt 0:04:39]} Be6 {[%emt 0:10:19]} 12. O-O {[%emt 0:06:27]} a4 {[%emt 0:18:34]} 13. f4 {[%emt 0:31:42]} Qa5 {[%emt 0:13:42]} 14. Rab1 {[%emt 0:16:35]} Rfc8 {[%emt 0:09:57]} 15. b3 {[%emt 0:00:53]} axb3 {[%emt 0:00:37]} 16. axb3 {[%emt 0:00:02]} Bg4 {[%emt 0:08:22]} 17. Bxg4 {[%emt 0:14:20]} Nxg4 {[%emt 0:00:06]} 18. h3 {[%emt 0:01:21]} Bxd4+ {[%emt 0:08:51]} 19. Qxd4 {[%emt 0:00:03]} e5 {[%emt 0:00:13]} 20. Qd2 {[%emt 0:01:16]} Qc5+ {[%emt 0:05:36]} 21. Kh1 {[%emt 0:00:01]} Nf6 {[%emt 0:00:17]} 22. f5 {[%emt 0:07:31]} Qd4 {[%emt 0:02:28]} 23. Qe1 {[%emt 0:01:52]} Nh5 {[%emt 0:00:53]} 24. Rd1 {[%emt 0:01:52]} Qc5 {[%emt 0:01:05]} 25. Nd5 {[%emt 0:00:15]} Rd8 {[%emt 0:02:00]} 26. Qh4 {[%emt 0:00:44]} Qa3 {[%emt 0:00:39]} 27. g4 {[%emt 0:01:09]} Qxb3 {[%emt 0:00:47]} 28. gxh5 {[%emt 0:00:22]} 1-0

[Event "Austrian Youth-ch U16 Boys 2024"]
[Site "Leibnitz"]
[Date "2024.03.26"]
[Round "5.2"]
[White "Nguyen, Le Minh Phu"]
[Black "Gruenwald, Simon"]
[Result "1-0"]
[ECO "A06"]
[WhiteElo "2218"]
[BlackElo "2117"]
[Annotator "RC"]
[PlyCount "139"]
[EventDate "2024.03.23"]
[EventType "swiss"]
[EventCountry "AUT"]
[SourceTitle "playchess.com"]
[Source "ChessBase"]
[SourceQuality "1"]
[TimeControl "5400+30"]

1. Nf3 {[%emt 0:00:03]} d5 {[%emt 0:00:01]} 2. e3 {[%emt 0:00:08]} Bg4 {[%emt 0:00:27]} 3. h3 {[%emt 0:00:05]} Bxf3 {[%emt 0:04:34]} 4. Qxf3 {[%emt 0:00:08]} Nf6 {[%emt 0:00:13]} 5. b3 {[%emt 0:04:07]} e6 {[%emt 0:03:14]} 6. Bb2 {[%emt 0:00:20]} Be7 {[%emt 0:01:03]} 7. Be2 {[%emt 0:09:24]} O-O {[%emt 0:02:58]} 8. d3 {[%emt 0:06:33]} c5 {[%emt 0:04:14]} 9. O-O {[%emt 0:01:37]} Nc6 {[%emt 0:01:00]} 10. c4 {[%emt 0:02:17]} Qc7 {[%emt 0:09:47]} 11. Nc3 {[%emt 0:01:23]} Rad8 {[%emt 0:06:09]} 12. Rfd1 {[%emt 0:06:55]} d4 {[%emt 0:07:17]} 13. Nb5 {[%emt 0:07:17]} Qe5 {[%emt 0:04:11]} 14. exd4 {[%emt 0:07:02]} cxd4 {[%emt 0:00:32]} 15. Bf1 {[%emt 0:00:51]} a6 {[%emt 0:03:29]} 16. Na3 {[%emt 0:00:06]} Bd6 {[%emt 0:03:25]} 17. g3 {[%emt 0:02:26]} Qg5 {[%emt 0:05:08]} 18. Nc2 {[%emt 0:01:18]} e5 {[%emt 0:05:51]} 19. Bg2 {[%emt 0:02:54]} Nh5 {[%emt 0:10:20]} 20. Qg4 {[%emt 0:04:05]} Qxg4 {[%emt 0:05:05]} 21. hxg4 {[%emt 0:00:08]} Nf6 {[%emt 0:00:03]} 22. g5 {[%emt 0:01:13]} Nd7 {[%emt 0:00:46]} 23. Rab1 {[%emt 0:03:16]} Rb8 {[%emt 0:02:00]} 24. Bc1 {[%emt 0:01:31]} a5 {[%emt 0:02:37]} 25. a3 {[%emt 0:04:11]} Rfc8 {[%emt 0:01:47]} 26. b4 {[%emt 0:01:34]} b6 {[%emt 0:02:51]} 27. Bd2 {[%emt 0:02:36]} a4 {[%emt 0:02:00]} 28. f4 {[%emt 0:01:51]} Ne7 {[%emt 0:03:50]} 29. Rf1 {[%emt 0:02:44]} g6 {[%emt 0:02:09]} 30. Rbe1 {[%emt 0:04:29]} Re8 {[%emt 0:00:59]} 31. Bh3 {[%emt 0:02:04]} Nf5 {[%emt 0:01:28]} 32. Bxf5 {[%emt 0:00:15]} gxf5 {[%emt 0:00:06]} 33. fxe5 {[%emt 0:00:20]} Nxe5 {[%emt 0:01:14]} 34. Nxd4 {[%emt 0:00:08]} Nxd3 {[%emt 0:00:47]} 35. Rxe8+ {[%emt 0:00:06]} Rxe8 {[%emt 0:00:01]} 36. Nxf5 {[%emt 0:00:08]} Re2 {[%emt 0:02:04]} 37. Bc3 {[%emt 0:01:51]} Be5 {[%emt 0:00:46]} 38. Rd1 {[%emt 0:13:55]} Bxc3 {[%emt 0:01:35]} 39. Rxd3 {[%emt 0:00:04]} Bg7 {[%emt 0:00:38]} 40. Rd7 {[%emt 0:02:59]} Bf8 {[%emt 0:01:00]} 41. Nh6+ {[%emt 0:00:56]} Bxh6 {[%emt 0:00:56]} 42. gxh6 {[%emt 0:00:05]} Kf8 {[%emt 0:00:23]} 43. Rd8+ {[%emt 0:03:31]} Ke7 {[%emt 0:00:00]} 44. Rh8 {[%emt 0:00:20]} Re3 {[%emt 0:01:50]} 45. Kf2 {[%emt 0:00:06]} Rxa3 {[%emt 0:00:05]} 46. Rxh7 {[%emt 0:00:08]} Ra2+ {[%emt 0:00:26]} 47. Kf3 {[%emt 0:01:02]} Kf6 {[%emt 0:01:30]} 48. Rh8 {[%emt 0:00:13]} Rc2 {[%emt 0:00:49]} 49. Rb8 {[%emt 0:00:22]} Kg6 {[%emt 0:00:42]} 50. Rxb6+ {[%emt 0:00:04]} Kh7 {[%emt 0:00:09]} 51. c5 {[%emt 0:00:37]} a3 {[%emt 0:00:28]} 52. Rf6 {[%emt 0:00:53]} Rc3+ {[%emt 0:00:48]} 53. Kg4 {[%emt 0:00:55]} Rc4+ {[%emt 0:00:36]} 54. Kg5 {[%emt 0:00:06]} Rxb4 {[%emt 0:00:31]} 55. Rxf7+ {[%emt 0:00:04]} Kg8 {[%emt 0:00:18]} 56. Rg7+ {[%emt 0:00:34]} Kh8 {[%emt 0:00:18]} 57. Ra7 {[%emt 0:00:37]} Rc4 {[%emt 0:00:27]} 58. g4 {[%emt 0:01:33]} Rxc5+ {[%emt 0:00:43]} 59. Kg6 {[%emt 0:00:04]} Rc6+ {[%emt 0:00:37]} 60. Kh5 {[%emt 0:00:04]} Rc3 {[%emt 0:00:42]} 61. g5 {[%emt 0:00:18]} Rc8 {[%emt 0:00:31]} 62. Rxa3 {[%emt 0:00:06]} Rb8 {[%emt 0:00:30]} 63. Ra7 {[%emt 0:01:27]} Rc8 {[%emt 0:00:17]} 64. Rf7 {[%emt 0:00:42]} Ra8 {[%emt 0:00:43]} 65. Rf5 {[%emt 0:00:12]} Kg8 {[%emt 0:00:22]} 66. g6 {[%emt 0:00:08]} Kh8 {[%emt 0:00:28]} 67. h7 {[%emt 0:00:28]} Kg7 {[%emt 0:00:41]} 68. Rf7+ {[%emt 0:00:04]} Kh8 {[%emt 0:00:22]} 69. Kh6 {[%emt 0:00:18]} Ra7 {[%emt 0:00:38]} 70. g7# {[%emt 0:00:06]} 1-0